fUST/lending_fUST_20250201
["ID","MTS","AMOUNT","RATE_DAILY","PERIOD"]
[351122365,1738344641532,-500.0,0.00016849,2]
[351122367,1738344641541,-500.0,0.00016849,2]
[351122369,1738344641550,-154.001899,0.00016849,2]
[351122371,1738344641559,-1216.83,0.00016849,2]
[351122373,1738344641568,-567.75,0.00016849,2]
[351122375,1738344641577,-291.787161,0.00016849,2]
[351122377,1738344641586,-500.0,0.00016849,2]
[351122379,1738344641595,-5287.52,0.00016849,2]
[351122381,1738344641604,-500.0,0.00016849,2]
[351122383,1738344641614,-668.33,0.00016849,2]
[351122385,1738344641622,-500.0,0.00016849,2]
[351122387,1738344641632,-1321.32,0.00016849,2]
[351122389,1738344641641,-500.0,0.00016849,2]
[351122391,1738344641650,-500.0,0.00016849,2]
[351122393,1738344641660,-500.0,0.00016849,2]
[351122395,1738344641669,-500.0,0.00016849,2]
[351122397,1738344641680,-500.0,0.00016849,2]
[351122399,1738344641689,-858.87,0.00016849,2]
[351122401,1738344641698,-158.3279012,0.00016849,2]
[351122403,1738344641707,-153.0,0.00016849,2]
[351122405,1738344641718,-153.0,0.00016849,2]
[351122407,1738344641727,-151.0,0.000169,2]
[351122409,1738344641736,-215.5610874,0.000169,2]
[351122411,1738344641746,-154.4000799,0.000169,2]
[351122413,1738344641755,-153.0,0.000169,2]
[351122415,1738344641765,-215.5610874,0.000169,2]
[351122417,1738344641774,-154.4000799,0.000169,2]
[351122419,1738344641784,-769.87761517,0.000169,2]
[351122420,1738344641793,-500.0,0.00016915,2]
[351122422,1738344641803,-5022.54913598,0.00016982,2]
[351122424,1738344641812,-151.0,0.00016985,2]
[351122427,1738344641821,-151.0,0.00016985,2]
[351122428,1738344641830,-229.909298,0.00016985,2]
[351122429,1738344641839,-302.172798,0.00016985,2]
[351122430,1738344641848,-302.172798,0.00016985,2]
[351122431,1738344641858,-160.0,0.00016985,2]
[351122432,1738344641867,-500.0,0.00016986,2]
[351122433,1738344641876,-500.0,0.00016986,2]
[351122434,1738344641885,-151.0,0.00016986,2]
[351122435,1738344641894,-151.0,0.00016986,2]
[351122436,1738344641903,-151.0,0.00016986,2]
[351122437,1738344641912,-500.0,0.00016986,2]
[351122438,1738344641922,-257.565147,0.00016986,2]
[351122439,1738344641931,-257.565147,0.00016986,2]
[351122440,1738344641940,-500.0,0.00016986,2]
[351122441,1738344641950,-500.0,0.00016986,2]
[351122442,1738344641959,-500.0,0.00016986,2]
[351122443,1738344641969,-500.0,0.00016986,2]
[351122444,1738344641978,-500.0,0.00016986,2]
[351122445,1738344641987,-500.0,0.00016986,2]
[351122446,1738344641996,-500.0,0.00016986,2]
[351122447,1738344642005,-500.0,0.00016986,2]
[351122448,1738344642014,-500.0,0.00016986,2]
[351122449,1738344642023,-500.0,0.00016986,2]
[351122450,1738344642032,-500.0,0.00016986,2]
[351122452,1738344642042,-500.0,0.00016986,2]
[351122454,1738344642051,-500.0,0.00016986,2]
[351122456,1738344642060,-635.21,0.00016986,2]
[351122458,1738344642069,-500.0,0.00016986,2]
[351122461,1738344642080,-500.0,0.00016986,2]
[351122462,1738344642089,-500.0,0.00016986,2]
[351122464,1738344642098,-500.0,0.00016986,2]
[351122466,1738344642107,-500.0,0.00016986,2]
[351122468,1738344642116,-283.968951,0.00016986,2]
[351122470,1738344642125,-283.968951,0.00016986,2]
[351122472,1738344642135,-500.0,0.00016986,2]
[351122474,1738344642145,-556.53,0.00016986,2]
[351122476,1738344642154,-500.0,0.00016986,2]
[351122478,1738344642163,-541.82317754,0.00016986,2]
[351122481,1738344642173,-845.4,0.00016986,2]
[351122482,1738344642182,-500.0,0.00016986,2]
[351122484,1738344642191,-8147.56,0.00016986,2]
[351122487,1738344642201,-500.0,0.00016986,2]
[351122489,1738344642211,-592.28904667,0.00016986,2]
[351122490,1738344642221,-151.0,0.00016986,2]
[351122492,1738344642230,-5110.0,0.00016986,2]
[351122494,1738344642239,-3058.46,0.00016986,2]
[351122496,1738344642248,-500.0,0.00016986,2]
[351122498,1738344642257,-2099.18,0.00016986,2]
[351122501,1738344642267,-500.0,0.00016986,2]
[351122503,1738344642276,-500.0,0.00016986,2]
[351122505,1738344642288,-500.0,0.00016986,2]
[351122506,1738344642298,-1360.63,0.00016986,2]
[351122509,1738344642307,-402.000057,0.00016986,2]
[351122510,1738344642316,-500.0,0.00016986,2]
[351122513,1738344642327,-402.000057,0.00016986,2]
[351122515,1738344642336,-151.0,0.00016986,2]
[351122516,1738344642346,-151.0,0.00016986,2]
[351122519,1738344642356,-500.0,0.00016986,2]
[351122520,1738344642365,-500.0,0.00016986,2]
[351122522,1738344642375,-500.0,0.00016986,2]
[351122524,1738344642384,-598.89,0.00016986,2]
[351122526,1738344642393,-803.39,0.00016986,2]
[351122529,1738344642402,-272.9,0.00016986,2]
[351122531,1738344642411,-514.1551618,0.00016986,2]
[351122533,1738344642420,-672.42,0.00016986,2]
[351122535,1738344642429,-500.0,0.00016986,2]
[351122537,1738344642438,-500.0,0.00016986,2]
[351122539,1738344642447,-500.0,0.00016986,2]
[351122541,1738344642457,-500.0,0.00016986,2]
[351122543,1738344642467,-500.0,0.00016986,2]
[351122544,1738344642476,-500.0,0.00016986,2]
[351122547,1738344642485,-500.0,0.00016986,2]
[351122548,1738344642494,-991.52,0.00016986,2]
[351122550,1738344642503,-776.07,0.00016986,2]
[351122553,1738344642512,-151.0,0.00016986,2]
[351122555,1738344642522,-2003.47,0.00016986,2]
[351122557,1738344642532,-1915.37,0.00016986,2]
[351122559,1738344642541,-151.0,0.00016986,2]
[351122561,1738344642550,-500.0,0.00016986,2]
[351122563,1738344642559,-221.759184,0.00016986,2]
[351122565,1738344642569,-151.0,0.00016986,2]
[351122567,1738344642578,-160.040122,0.00016986,2]
[351122569,1738344642587,-17311.44,0.00016986,2]
[351122571,1738344642596,-500.0,0.00016986,2]
[351122573,1738344642605,-500.0,0.00016986,2]
[351122574,1738344642614,-567.75,0.00016986,2]
[351122576,1738344642623,-1216.83,0.00016986,2]
[351122578,1738344642632,-500.0,0.00016986,2]
[351122580,1738344642641,-5287.52,0.00016986,2]
[351122582,1738344642652,-500.0,0.00016986,2]
[351122585,1738344642662,-668.33,0.00016986,2]
[351122586,1738344642671,-500.0,0.00016986,2]
[351122588,1738344642681,-1321.32,0.00016986,2]
[351122590,1738344642691,-500.0,0.00016986,2]
[351122592,1738344642701,-500.0,0.00016986,2]
[351122594,1738344642711,-500.0,0.00016986,2]
[351122596,1738344642720,-500.0,0.00016986,2]
[351122598,1738344642729,-500.0,0.00016986,2]
[351122600,1738344642739,-858.87,0.00016986,2]
[351122602,1738344642751,-1000.0,0.00017,17]
[351122604,1738344642760,-1000.0,0.00017,3]
[351122606,1738344642769,-151.0,0.00017,2]
[351122608,1738344642778,-151.0,0.00017,2]
[351122610,1738344642788,-151.0,0.000171,2]
[351122612,1738344642797,-151.0,0.000171,2]
[351122614,1738344642807,-769.87761517,0.00017107,2]
[351122616,1738344642816,-151.0,0.00017123,2]
[351122618,1738344642825,-500.0,0.00017123,2]
[351122620,1738344642834,-229.909298,0.00017123,2]
[351122622,1738344642843,-302.172798,0.00017123,2]
[351122624,1738344642853,-302.172798,0.00017123,2]
[351122626,1738344642862,-265.932468,0.00017123,2]
[351122628,1738344642871,-151.0,0.00017123,2]
[351122631,1738344642880,-151.0,0.00017123,2]
[351122634,1738344642890,-500.0,0.00017123,2]
[351122636,1738344642899,-257.565147,0.00017123,2]
[351122639,1738344642909,-257.565147,0.00017123,2]
[351122643,1738344642918,-500.0,0.00017123,2]
[351122648,1738344642927,-500.0,0.00017123,2]
[351122653,1738344642936,-500.0,0.00017123,2]
[351122657,1738344642945,-500.0,0.00017123,2]
[351122660,1738344642955,-500.0,0.00017123,2]
[351122663,1738344642964,-500.0,0.00017123,2]
[351122667,1738344642973,-500.0,0.00017123,2]
[351122670,1738344642983,-500.0,0.00017123,2]
[351122673,1738344642993,-500.0,0.00017123,2]
[351122675,1738344643003,-500.0,0.00017123,2]
[351122677,1738344643012,-500.0,0.00017123,2]
[351122679,1738344643021,-500.0,0.00017123,2]
[351122681,1738344643030,-635.21,0.00017123,2]
[351122693,1738344643125,-500.0,0.00017123,2]
[351122695,1738344643135,-411.50978824,0.00017123,2]
[351122697,1738344643145,-500.0,0.00017123,2]
[351122699,1738344643154,-500.0,0.00017123,2]
[351122701,1738344643163,-283.968951,0.00017123,2]
[351122703,1738344643172,-283.968951,0.00017123,2]
[351122705,1738344643181,-500.0,0.00017123,2]
[351122707,1738344643190,-556.53,0.00017123,2]
[351122709,1738344643199,-500.0,0.00017123,2]
[351122711,1738344643208,-845.4,0.00017123,2]
[351122713,1738344643218,-506.58122246,0.00017123,2]
[351122715,1738344643227,-8147.56,0.00017123,2]
[351122717,1738344643235,-500.0,0.00017123,2]
[351122719,1738344643244,-5110.0,0.00017123,2]
[351122721,1738344643253,-3058.46,0.00017123,2]
[351122723,1738344643263,-500.0,0.00017123,2]
[351122725,1738344643272,-2099.18,0.00017123,2]
[351122727,1738344643281,-500.0,0.00017123,2]
[351122729,1738344643294,-500.0,0.00017123,2]
[351122731,1738344643303,-500.0,0.00017123,2]
[351122733,1738344643312,-1360.63,0.00017123,2]
[351122735,1738344643321,-402.000057,0.00017123,2]
[351122737,1738344643332,-500.0,0.00017123,2]
[351122739,1738344643342,-402.000057,0.00017123,2]
[351122741,1738344643352,-151.0,0.00017123,2]
[351122743,1738344643362,-185.610017,0.00017123,2]
[351122745,1738344643372,-500.0,0.00017123,2]
[351122747,1738344643381,-500.0,0.00017123,2]
[351122749,1738344643390,-500.0,0.00017123,2]
[351122751,1738344643399,-598.89,0.00017123,2]
[351122753,1738344643408,-803.39,0.00017123,2]
[351122755,1738344643418,-672.42,0.00017123,2]
[351122757,1738344643427,-500.0,0.00017123,2]
[351122759,1738344643436,-500.0,0.00017123,2]
[351122761,1738344643445,-500.0,0.00017123,2]
[351122763,1738344643454,-500.0,0.00017123,2]
[351122765,1738344643463,-500.0,0.00017123,2]
[351122766,1738344643472,-500.0,0.00017123,2]
[351122769,1738344643481,-500.0,0.00017123,2]
[351122770,1738344643491,-991.52,0.00017123,2]
[351122772,1738344643500,-776.07,0.00017123,2]
[351122774,1738344643509,-151.0,0.00017123,2]
[351122777,1738344643518,-2003.47,0.00017123,2]
[351122779,1738344643528,-1915.37,0.00017123,2]
[351122781,1738344643537,-151.000001,0.00017123,2]
[351122783,1738344643546,-500.0,0.00017123,2]
[351122785,1738344643555,-151.0,0.00017123,2]
[351122787,1738344643564,-17311.44,0.00017123,2]
[351122789,1738344643573,-500.0,0.00017123,2]
[351122791,1738344643583,-500.0,0.00017123,2]
[351122793,1738344643593,-567.75,0.00017123,2]
[351122795,1738344643602,-1216.83,0.00017123,2]
[351122797,1738344643611,-500.0,0.00017123,2]
[351122800,1738344643621,-5287.52,0.00017123,2]
[351122801,1738344643630,-500.0,0.00017123,2]
[351122803,1738344643639,-668.33,0.00017123,2]
[351122806,1738344643648,-500.0,0.00017123,2]
[351122808,1738344643658,-1321.32,0.00017123,2]
[351122809,1738344643667,-500.0,0.00017123,2]
[351122812,1738344643676,-389.73569849,0.00017123,2]
[351122813,1738344643686,-500.0,0.00017123,2]
[351122816,1738344643696,-500.0,0.00017123,2]
[351122818,1738344643705,-500.0,0.00017123,2]
[351122819,1738344643715,-858.87,0.00017123,2]
[351122821,1738344643725,-1484.1460681,0.00017187,2]
[351122823,1738344643735,-151.0,0.000172,2]
[351122825,1738344643744,-151.0,0.000172,2]
[351122827,1738344643754,-621.0,0.000172,2]
[351122829,1738344643763,-1319.04148464,0.00017218,2]
[351122831,1738344643773,-151.0,0.0001726,2]
[351122833,1738344643782,-500.0,0.0001726,2]
[351122835,1738344643791,-229.909298,0.0001726,2]
[351122837,1738344643801,-302.172798,0.0001726,2]
[351122839,1738344643810,-302.172798,0.0001726,2]
[351122841,1738344643819,-151.0,0.0001726,2]
[351122843,1738344643828,-151.0,0.0001726,2]
[351122845,1738344643838,-257.565147,0.0001726,2]
[351122847,1738344643847,-257.565147,0.0001726,2]
[351122849,1738344643856,-581.39,0.0001726,2]
[351122851,1738344643865,-500.0,0.0001726,2]
[351122853,1738344643875,-500.0,0.0001726,2]
[351122855,1738344643884,-500.0,0.0001726,2]
[351122857,1738344643893,-500.0,0.0001726,2]
[351122859,1738344643903,-500.0,0.0001726,2]
[351122861,1738344643913,-500.0,0.0001726,2]
[351122863,1738344643922,-635.21,0.0001726,2]
[351122865,1738344643932,-500.0,0.0001726,2]
[351122867,1738344643942,-500.0,0.0001726,2]
[351122869,1738344643952,-283.968951,0.0001726,2]
[351122871,1738344643961,-283.968951,0.0001726,2]
[351122873,1738344643971,-556.53,0.0001726,2]
[351122875,1738344643982,-500.0,0.0001726,2]
[351122877,1738344643991,-845.4,0.0001726,2]
[351122879,1738344644000,-8147.56,0.0001726,2]
[351122881,1738344644010,-500.0,0.0001726,2]
[351122883,1738344644019,-5110.0,0.0001726,2]
[351122885,1738344644030,-3058.46,0.0001726,2]
[351122887,1738344644039,-2099.18,0.0001726,2]
[351122889,1738344644048,-500.0,0.0001726,2]
[351122891,1738344644057,-500.0,0.0001726,2]
[351122893,1738344644067,-1360.63,0.0001726,2]
[351122895,1738344644076,-402.000057,0.0001726,2]
[351122897,1738344644086,-500.0,0.0001726,2]
[351122899,1738344644095,-402.000057,0.0001726,2]
[351122901,1738344644104,-151.0,0.0001726,2]
[351122903,1738344644113,-500.0,0.0001726,2]
[351122905,1738344644123,-500.0,0.0001726,2]
[351122907,1738344644132,-598.89,0.0001726,2]
[351122909,1738344644142,-803.39,0.0001726,2]
[351122911,1738344644153,-672.42,0.0001726,2]
[351122913,1738344644163,-500.0,0.0001726,2]
[351122915,1738344644171,-500.0,0.0001726,2]
[351122917,1738344644181,-500.0,0.0001726,2]
[351122919,1738344644190,-500.0,0.0001726,2]
[351122921,1738344644200,-500.0,0.0001726,2]
[351122923,1738344644208,-500.0,0.0001726,2]
[351122925,1738344644218,-500.0,0.0001726,2]
[351122927,1738344644228,-991.52,0.0001726,2]
[351122929,1738344644237,-776.07,0.0001726,2]
[351122931,1738344644246,-151.0,0.0001726,2]
[351122933,1738344644256,-2003.47,0.0001726,2]
[351122935,1738344644265,-1915.37,0.0001726,2]
[351122937,1738344644274,-500.0,0.0001726,2]
[351122939,1738344644286,-151.0,0.0001726,2]
[351122941,1738344644296,-17311.44,0.0001726,2]
[351122943,1738344644306,-500.0,0.0001726,2]
[351122945,1738344644315,-500.0,0.0001726,2]
[351122946,1738344644324,-567.75,0.0001726,2]
[351122947,1738344644335,-1216.83,0.0001726,2]
[351122948,1738344644344,-490.5395889,0.0001726,2]
[351122949,1738344644353,-5287.52,0.0001726,2]
[351122950,1738344644363,-500.0,0.0001726,2]
[351122951,1738344644372,-668.33,0.0001726,2]
[351122953,1738344644381,-500.0,0.0001726,2]
[351122955,1738344644391,-1321.32,0.0001726,2]
[351122957,1738344644400,-500.0,0.0001726,2]
[351122959,1738344644409,-500.0,0.0001726,2]
[351122961,1738344644419,-500.0,0.0001726,2]
[351122963,1738344644428,-500.0,0.0001726,2]
[351122965,1738344644437,-858.87,0.0001726,2]
[351122967,1738344644446,-500.0,0.00017274,2]
[351122969,1738344644456,-151.0,0.000173,2]
[351122971,1738344644465,-151.0,0.000173,2]
[351122973,1738344644474,-151.0,0.000173,2]
[351122975,1738344644483,-769.87761517,0.00017314,2]
[351122977,1738344644493,-1246.77552051,0.00017369,2]
[351122979,1738344644503,-298.0,0.0001739,2]
[351122981,1738344644512,-151.0,0.00017397,2]
[351122983,1738344644521,-500.0,0.00017397,2]
[351122985,1738344644530,-229.909298,0.00017397,2]
[351122987,1738344644539,-302.172798,0.00017397,2]
[351122989,1738344644548,-302.172798,0.00017397,2]
[351122991,1738344644557,-151.0,0.00017397,2]
[351122993,1738344644566,-500.0,0.00017397,2]
[351122995,1738344644575,-500.0,0.00017397,2]
[351122997,1738344644584,-500.0,0.00017397,2]
[351122999,1738344644593,-517.15,0.00017397,2]
[351123001,1738344644602,-605.47,0.00017397,2]
[351123003,1738344644611,-635.21,0.00017397,2]
[351123005,1738344644621,-500.0,0.00017397,2]
[351123007,1738344644631,-556.53,0.00017397,2]
[351123009,1738344644640,-500.0,0.00017397,2]
[351123011,1738344644649,-845.4,0.00017397,2]
[351123013,1738344644658,-8147.56,0.00017397,2]
[351123016,1738344644667,-5110.0,0.00017397,2]
[351123017,1738344644676,-3058.46,0.00017397,2]
[351123019,1738344644686,-2099.18,0.00017397,2]
[351123022,1738344644696,-223.0,0.00017397,2]
[351123023,1738344644707,-500.0,0.00017397,2]
[351123026,1738344644718,-1360.63,0.00017397,2]
[351123028,1738344644727,-500.0,0.00017397,2]
[351123030,1738344644737,-500.0,0.00017397,2]
[351123032,1738344644746,-500.0,0.00017397,2]
[351123034,1738344644756,-598.89,0.00017397,2]
[351123036,1738344644765,-803.39,0.00017397,2]
[351123038,1738344644775,-672.42,0.00017397,2]
[351123040,1738344644784,-500.0,0.00017397,2]
[351123042,1738344644794,-500.0,0.00017397,2]
[351123044,1738344644803,-500.0,0.00017397,2]
[351123046,1738344644812,-500.0,0.00017397,2]
[351123048,1738344644822,-500.0,0.00017397,2]
[351123050,1738344644832,-500.0,0.00017397,2]
[351123052,1738344644841,-991.52,0.00017397,2]
[351123054,1738344644850,-776.07,0.00017397,2]
[351123056,1738344644860,-2003.47,0.00017397,2]
[351123067,1738344644950,-1915.37,0.00017397,2]
[351123069,1738344644960,-500.0,0.00017397,2]
[351123071,1738344644971,-17311.44,0.00017397,2]
[351123073,1738344644980,-500.0,0.00017397,2]
[351123075,1738344644990,-500.0,0.00017397,2]
[351123077,1738344644999,-567.75,0.00017397,2]
[351123079,1738344645008,-1216.83,0.00017397,2]
[351123081,1738344645017,-5287.52,0.00017397,2]
[351123083,1738344645026,-500.0,0.00017397,2]
[351123085,1738344645035,-668.33,0.00017397,2]
[351123087,1738344645044,-500.0,0.00017397,2]
[351123089,1738344645054,-1321.32,0.00017397,2]
[351123091,1738344645063,-500.0,0.00017397,2]
[351123093,1738344645072,-500.0,0.00017397,2]
[351123095,1738344645081,-500.0,0.00017397,2]
[351123097,1738344645090,-500.0,0.00017397,2]
[351123099,1738344645100,-858.87,0.00017397,2]
[351123101,1738344645110,-153.0,0.00017397,2]
[351123104,1738344645119,-153.0,0.00017397,2]
[351123106,1738344645129,-153.0,0.00017397,2]
[351123107,1738344645138,-153.0,0.00017397,2]
[351123110,1738344645147,-153.0,0.00017397,2]
[351123112,1738344645156,-153.0,0.00017397,2]
[351123114,1738344645165,-153.0,0.00017397,2]
[351123116,1738344645175,-153.0,0.00017397,2]
[351123118,1738344645184,-306.0,0.00017397,2]
[351123120,1738344645193,-151.0,0.000174,2]
[351123122,1738344645202,-769.87761517,0.00017521,2]
[351123124,1738344645211,-153.0,0.00017529,2]
[351123126,1738344645221,-150.0,0.00017529,2]
[351123128,1738344645231,-187.292,0.00017529,2]
[351123130,1738344645240,-201.840173,0.00017534,2]
[351123132,1738344645249,-500.0,0.00017534,2]
[351123134,1738344645258,-229.909298,0.00017534,2]
[351123136,1738344645267,-302.172798,0.00017534,2]
[351123138,1738344645276,-302.172798,0.00017534,2]
[351123140,1738344645287,-151.0,0.00017534,2]
[351123142,1738344645297,-257.565147,0.00017534,2]
[351123144,1738344645306,-257.565147,0.00017534,2]
[351123146,1738344645315,-500.0,0.00017534,2]
[351123148,1738344645324,-635.21,0.00017534,2]
[351123150,1738344645334,-500.0,0.00017534,2]
[351123152,1738344645344,-283.968951,0.00017534,2]
[351123154,1738344645354,-283.968951,0.00017534,2]
[351123156,1738344645364,-556.53,0.00017534,2]
[351123158,1738344645374,-500.0,0.00017534,2]
[351123160,1738344645384,-845.4,0.00017534,2]
[351123162,1738344645394,-8147.56,0.00017534,2]
[351123164,1738344645403,-5110.0,0.00017534,2]
[351123166,1738344645413,-3058.46,0.00017534,2]
[351123168,1738344645422,-2099.18,0.00017534,2]
[351123170,1738344645432,-500.0,0.00017534,2]
[351123172,1738344645441,-1360.63,0.00017534,2]
[351123174,1738344645451,-500.0,0.00017534,2]
[351123177,1738344645461,-402.000057,0.00017534,2]
[351123178,1738344645472,-402.000057,0.00017534,2]
[351123181,1738344645482,-151.0,0.00017534,2]
[351123183,1738344645491,-308.41437865,0.00017534,2]
[351123185,1738344645500,-500.0,0.00017534,2]
[351123187,1738344645510,-598.89,0.00017534,2]
[351123189,1738344645519,-803.39,0.00017534,2]
[351123191,1738344645529,-672.42,0.00017534,2]
[351123193,1738344645538,-500.0,0.00017534,2]
[351123195,1738344645548,-500.0,0.00017534,2]
[351123197,1738344645556,-500.0,0.00017534,2]
[351123199,1738344645566,-500.0,0.00017534,2]
[351123201,1738344645575,-500.0,0.00017534,2]
[351123203,1738344645584,-776.07,0.00017534,2]
[351123205,1738344645594,-991.52,0.00017534,2]
[351123207,1738344645603,-2003.47,0.00017534,2]
[351123209,1738344645612,-1915.37,0.00017534,2]
[351123211,1738344645621,-500.0,0.00017534,2]
[351123213,1738344645630,-151.0,0.00017534,2]
[351123215,1738344645639,-17311.44,0.00017534,2]
[351123217,1738344645649,-500.0,0.00017534,2]
[351123219,1738344645658,-567.75,0.00017534,2]
[351123221,1738344645667,-1216.83,0.00017534,2]
[351123223,1738344645677,-5287.52,0.00017534,2]
[351123225,1738344645686,-500.0,0.00017534,2]
[351123227,1738344645695,-668.33,0.00017534,2]
[351123229,1738344645704,-500.0,0.00017534,2]
[351123231,1738344645714,-1321.32,0.00017534,2]
[351123233,1738344645723,-500.0,0.00017534,2]
[351123235,1738344645733,-500.0,0.00017534,2]
[351123237,1738344645743,-500.0,0.00017534,2]
[351123239,1738344645752,-500.0,0.00017534,2]
[351123241,1738344645761,-858.87,0.00017534,2]
[351123243,1738344645771,-354.392988,0.00017534,2]
[351123245,1738344645781,-354.392988,0.00017534,2]
[351123247,1738344645791,-353.3745842,0.00017534,2]
[351123250,1738344645801,-537.0,0.00017541,2]
[351123252,1738344645810,-2042.0,0.00017541,2]
[351123254,1738344645820,-2303.0,0.00017541,2]
[351123256,1738344645829,-167.0,0.00017577,2]
[351123258,1738344645839,-8122.5,0.000176,2]
[351123260,1738344645848,-9837.4,0.000176,2]
[351123263,1738344645859,-500.0,0.00017671,2]
[351123265,1738344645869,-151.0,0.00017671,2]
[351123268,1738344645878,-257.565147,0.00017671,2]
[351123271,1738344645888,-257.565147,0.00017671,2]
[351123274,1738344645897,-500.0,0.00017671,2]
[351123276,1738344645907,-151.0,0.00017671,2]
[351123278,1738344645916,-635.21,0.00017671,2]
[351123280,1738344645925,-500.0,0.00017671,2]
[351123282,1738344645935,-283.968951,0.00017671,2]
[351123284,1738344645944,-283.968951,0.00017671,2]
[351123286,1738344645953,-556.53,0.00017671,2]
[351123288,1738344645962,-500.0,0.00017671,2]
[351123290,1738344645973,-845.4,0.00017671,2]
[351123292,1738344645982,-8147.56,0.00017671,2]
[351123295,1738344645992,-5110.0,0.00017671,2]
[351123297,1738344646001,-3058.46,0.00017671,2]
[351123299,1738344646010,-2099.18,0.00017671,2]
[351123301,1738344646020,-500.0,0.00017671,2]
[351123303,1738344646029,-1360.63,0.00017671,2]
[351123305,1738344646038,-500.0,0.00017671,2]
[351123307,1738344646048,-402.000057,0.00017671,2]
[351123309,1738344646057,-402.000057,0.00017671,2]
[351123311,1738344646067,-500.0,0.00017671,2]
[351123313,1738344646076,-598.89,0.00017671,2]
[351123315,1738344646085,-803.39,0.00017671,2]
[351123317,1738344646095,-672.42,0.00017671,2]
[351123319,1738344646104,-500.0,0.00017671,2]
[351123321,1738344646113,-536.45125176,0.00017671,2]
[351123323,1738344646122,-500.0,0.00017671,2]
[351123325,1738344646131,-500.0,0.00017671,2]
[351123327,1738344646140,-776.07,0.00017671,2]
[351123329,1738344646149,-991.52,0.00017671,2]
[351123331,1738344646159,-2003.47,0.00017671,2]
[351123333,1738344646168,-1915.37,0.00017671,2]
[351123335,1738344646177,-500.0,0.00017671,2]
[351123337,1738344646186,-151.0,0.00017671,2]
[351123339,1738344646195,-17311.44,0.00017671,2]
[351123341,1738344646204,-500.0,0.00017671,2]
[351123343,1738344646214,-1216.83,0.00017671,2]
[351123345,1738344646223,-567.75,0.00017671,2]
[351123347,1738344646232,-5287.52,0.00017671,2]
[351123349,1738344646241,-500.0,0.00017671,2]
[351123351,1738344646250,-668.33,0.00017671,2]
[351123353,1738344646259,-500.0,0.00017671,2]
[351123355,1738344646268,-1321.32,0.00017671,2]
[351123357,1738344646278,-500.0,0.00017671,2]
[351123359,1738344646290,-500.0,0.00017671,2]
[351123361,1738344646299,-500.0,0.00017671,2]
[351123363,1738344646309,-500.0,0.00017671,2]
[351123365,1738344646319,-858.87,0.00017671,2]
[351123368,1738344646330,-2228.29663607,0.000177,2]
[351123370,1738344646339,-800.0,0.00017726,2]
[351123372,1738344646349,-769.87761517,0.00017728,2]
[351123373,1738344646358,-4727.83053771,0.000178,2]
[351123376,1738344646368,-500.0,0.00017808,2]
[351123378,1738344646377,-302.172798,0.00017808,2]
[351123380,1738344646387,-229.909298,0.00017808,2]
[351123382,1738344646396,-302.172798,0.00017808,2]